fUST/lending_fUST_20250619
["ID","MTS","AMOUNT","RATE_DAILY","PERIOD"]
[366464552,1750269039960,-1283.52,0.00021917,6]
[366464554,1750269039969,-500.0,0.00021917,6]
[366464556,1750269039978,-151.0,0.00021917,6]
[366464558,1750269039987,-460.0,0.00021917,2]
[366464560,1750269039996,-460.0,0.00021917,6]
[366464561,1750269040005,-889.5,0.00021917,6]
[366464563,1750269040015,-460.0,0.00021917,6]
[366464565,1750269040024,-597.0,0.00021944,6]
[366464567,1750269040033,-151.0,0.00021944,6]
[366464569,1750269040042,-151.0,0.00021944,6]
[366464571,1750269040052,-151.0,0.00021944,6]
[366464573,1750269040061,-500.0,0.00021944,6]
[366464575,1750269040070,-151.0,0.00021944,6]
[366464577,1750269040079,-500.0,0.00021944,6]
[366464579,1750269040088,-500.0,0.00021944,6]
[366464581,1750269040098,-500.0,0.00021944,6]
[366464583,1750269040107,-151.0,0.00021944,6]
[366464585,1750269040116,-597.0,0.00021972,6]
[366464587,1750269040124,-198.0,0.00021972,6]
[366464589,1750269040132,-151.0,0.00021972,6]
[366464591,1750269040142,-151.0,0.00021972,6]
[366464593,1750269040151,-500.0,0.00021972,6]
[366464595,1750269040160,-151.0,0.00021972,6]
[366464597,1750269040169,-500.0,0.00021972,6]
[366464599,1750269040178,-500.0,0.00021972,6]
[366464601,1750269040188,-280.54087545,0.00021972,6]
[366464603,1750269040197,-200.35640852,0.00021972,6]
[366464605,1750269040207,-597.0,0.00021999,6]
[366464607,1750269040220,-151.0,0.00021999,6]
[366464609,1750269040231,-174.68934162,0.00021999,6]
[366464611,1750269040240,-500.0,0.00021999,6]
[366464613,1750269040250,-151.0,0.00021999,6]
[366464615,1750269040261,-500.0,0.00021999,6]
[366464617,1750269040270,-208.0,0.00021999,6]
[366464619,1750269040279,-597.0,0.00022027,6]
[366464621,1750269040290,-151.0,0.00022027,6]
[366464623,1750269040301,-500.0,0.00022027,6]
[366464626,1750269040312,-228.23343728,0.00022027,6]
[366464628,1750269040322,-193.56614612,0.00022027,6]
[366464630,1750269040331,-895.02156935,0.00022038,6]
[366464632,1750269040340,-597.0,0.00022054,6]
[366464633,1750269040349,-245.0,0.00022054,6]
[366464636,1750269040359,-500.0,0.00022054,6]
[366464638,1750269040369,-597.0,0.00022081,6]
[366464640,1750269040380,-500.0,0.00022081,6]
[366464642,1750269040390,-597.0,0.00022109,6]
[366464644,1750269040400,-500.0,0.00022109,6]
[366464646,1750269040410,-597.0,0.00022136,6]
[366464648,1750269040419,-500.0,0.00022136,6]
[366464650,1750269040428,-597.0,0.00022164,6]
[366464652,1750269040438,-500.0,0.00022164,6]
[366464654,1750269040447,-895.02156935,0.00022176,6]
[366464655,1750269040457,-597.0,0.00022191,6]
[366464657,1750269040467,-500.0,0.00022191,6]
[366464660,1750269040478,-460.0,0.00022191,6]
[366464661,1750269040487,-460.0,0.00022191,6]
[366464663,1750269040496,-460.0,0.00022191,6]
[366464666,1750269040506,-460.0,0.00022191,6]
[366464668,1750269040516,-460.0,0.00022191,6]
[366464669,1750269040525,-460.0,0.00022191,6]
[366464671,1750269040535,-460.0,0.00022191,6]
[366464674,1750269040546,-460.0,0.00022191,6]
[366464675,1750269040555,-460.0,0.00022191,6]
[366464677,1750269040565,-460.0,0.00022191,6]
[366464679,1750269040575,-460.0,0.00022191,6]
[366464682,1750269040585,-386.30385763,0.00022191,6]
[366464683,1750269040594,-1781.28,0.00022191,6]
[366464685,1750269040604,-549.93,0.00022191,6]
[366464687,1750269040613,-460.0,0.00022191,6]
[366464689,1750269040623,-1957.23,0.00022191,6]
[366464691,1750269040634,-460.0,0.00022191,6]
[366464693,1750269040646,-1959.05,0.00022191,6]
[366464695,1750269040655,-460.0,0.00022191,6]
[366464712,1750269040809,-460.0,0.00022191,6]
[366464715,1750269040823,-460.0,0.00022191,6]
[366464717,1750269040833,-1187.5,0.00022191,6]
[366464719,1750269040843,-460.0,0.00022191,6]
[366464721,1750269040852,-656.22,0.00022191,6]
[366464723,1750269040862,-1762.23,0.00022191,6]
[366464725,1750269040872,-767.14,0.00022191,6]
[366464727,1750269040882,-583.59763503,0.00022191,6]
[366464729,1750269040893,-460.0,0.00022191,6]
[366464731,1750269040903,-738.35,0.00022191,6]
[366464733,1750269040913,-460.0,0.00022191,6]
[366464735,1750269040923,-460.0,0.00022191,6]
[366464737,1750269040932,-499.18,0.00022191,6]
[366464739,1750269040942,-909.15,0.00022191,6]
[366464741,1750269040951,-460.0,0.00022191,6]
[366464743,1750269040960,-460.0,0.00022191,6]
[366464745,1750269040969,-460.0,0.00022191,6]
[366464747,1750269040979,-460.0,0.00022191,6]
[366464749,1750269040989,-460.0,0.00022191,6]
[366464751,1750269040999,-460.0,0.00022191,6]
[366464753,1750269041008,-460.0,0.00022191,6]
[366464755,1750269041018,-661.89,0.00022191,6]
[366464757,1750269041027,-1377.4,0.00022191,6]
[366464759,1750269041037,-607.2,0.00022191,6]
[366464761,1750269041046,-460.0,0.00022191,6]
[366464763,1750269041056,-460.0,0.00022191,6]
[366464765,1750269041065,-460.0,0.00022191,6]
[366464767,1750269041074,-460.0,0.00022191,6]
[366464769,1750269041084,-834.01,0.00022191,6]
[366464771,1750269041093,-460.0,0.00022191,6]
[366464773,1750269041103,-460.0,0.00022191,6]
[366464775,1750269041112,-460.0,0.00022191,6]
[366464777,1750269041121,-501.03,0.00022191,6]
[366464779,1750269041131,-460.0,0.00022191,6]
[366464781,1750269041141,-460.0,0.00022191,6]
[366464782,1750269041151,-3722.3,0.00022191,6]
[366464783,1750269041160,-460.0,0.00022191,6]
[366464784,1750269041170,-1717.18,0.00022191,6]
[366464785,1750269041179,-460.0,0.00022191,6]
[366464786,1750269041189,-1283.52,0.00022191,6]
[366464787,1750269041198,-460.0,0.00022191,2]
[366464788,1750269041207,-889.5,0.00022191,6]
[366464789,1750269041219,-460.0,0.00022191,6]
[366464790,1750269041228,-764.44,0.000222,7]
[366464791,1750269041239,-597.0,0.00022218,6]
[366464792,1750269041248,-500.0,0.00022218,6]
[366464793,1750269041258,-237.79875186,0.00022245,2]
[366464794,1750269041268,-597.0,0.00022246,6]
[366464795,1750269041277,-500.0,0.00022246,6]
[366464796,1750269041286,-300.39179917,0.00022249,2]
[366464797,1750269041295,-1356.81,0.00022251,2]
[366464798,1750269041305,-597.0,0.00022273,6]
[366464799,1750269041315,-500.0,0.00022273,6]
[366464800,1750269041326,-502.14613892,0.00022276,2]
[366464801,1750269041341,-597.0,0.00022301,6]
[366464802,1750269041352,-500.0,0.00022301,6]
[366464803,1750269041361,-895.02156935,0.00022314,7]
[366464804,1750269041370,-597.0,0.00022328,6]
[366464805,1750269041379,-500.0,0.00022328,6]
[366464806,1750269041389,-213.43818883,0.0002235,2]
[366464807,1750269041398,-160.0,0.0002235,2]
[366464808,1750269041408,-597.0,0.00022355,6]
[366464809,1750269041417,-500.0,0.00022355,6]
[366464810,1750269041427,-597.0,0.00022383,6]
[366464811,1750269041436,-382.37442,0.00022383,6]
[366464812,1750269041445,-597.0,0.0002241,6]
[366464813,1750269041454,-597.0,0.00022438,6]
[366464814,1750269041463,-895.02156935,0.00022452,7]
[366464815,1750269041473,-597.0,0.00022465,6]
[366464816,1750269041481,-472.48495145,0.00022465,6]
[366464817,1750269041491,-460.0,0.00022465,6]
[366464818,1750269041500,-460.0,0.00022465,6]
[366464819,1750269041509,-460.0,0.00022465,6]
[366464820,1750269041518,-460.0,0.00022465,6]
[366464821,1750269041527,-460.0,0.00022465,6]
[366464822,1750269041536,-460.0,0.00022465,6]
[366464823,1750269041545,-460.0,0.00022465,6]
[366464824,1750269041555,-460.0,0.00022465,6]
[366464825,1750269041563,-460.0,0.00022465,6]
[366464826,1750269041572,-460.0,0.00022465,6]
[366464827,1750269041582,-1781.28,0.00022465,6]
[366464828,1750269041591,-549.93,0.00022465,6]
[366464829,1750269041600,-460.0,0.00022465,6]
[366464831,1750269041610,-1957.23,0.00022465,6]
[366464832,1750269041619,-460.0,0.00022465,6]
[366464833,1750269041629,-1959.05,0.00022465,6]
[366464834,1750269041639,-460.0,0.00022465,6]
[366464835,1750269041648,-460.0,0.00022465,6]
[366464836,1750269041658,-460.0,0.00022465,6]
[366464837,1750269041668,-1187.5,0.00022465,6]
[366464838,1750269041677,-460.0,0.00022465,6]
[366464839,1750269041687,-656.22,0.00022465,6]
[366464840,1750269041697,-1762.23,0.00022465,6]
[366464841,1750269041706,-767.14,0.00022465,6]
[366464842,1750269041715,-510.77670992,0.00022465,6]
[366464843,1750269041725,-738.35,0.00022465,6]
[366464844,1750269041734,-460.0,0.00022465,6]
[366464845,1750269041743,-460.0,0.00022465,6]
[366464846,1750269041752,-499.18,0.00022465,6]
[366464847,1750269041762,-909.15,0.00022465,6]
[366464848,1750269041771,-460.0,0.00022465,6]
[366464849,1750269041781,-460.0,0.00022465,6]
[366464851,1750269041790,-460.0,0.00022465,6]
[366464852,1750269041799,-460.0,0.00022465,6]
[366464853,1750269041808,-460.0,0.00022465,6]
[366464855,1750269041817,-460.0,0.00022465,6]
[366464856,1750269041827,-460.0,0.00022465,6]
[366464857,1750269041836,-661.89,0.00022465,6]
[366464858,1750269041845,-1377.4,0.00022465,6]
[366464859,1750269041855,-607.2,0.00022465,6]
[366464860,1750269041864,-460.0,0.00022465,6]
[366464861,1750269041873,-460.0,0.00022465,6]
[366464862,1750269041883,-460.0,0.00022465,6]
[366464863,1750269041893,-460.0,0.00022465,6]
[366464864,1750269041903,-834.01,0.00022465,6]
[366464865,1750269041913,-460.0,0.00022465,6]
[366464866,1750269041922,-460.0,0.00022465,6]
[366464868,1750269041931,-460.0,0.00022465,6]
[366464869,1750269041941,-501.03,0.00022465,6]
[366464870,1750269041950,-460.0,0.00022465,6]
[366464871,1750269041960,-460.0,0.00022465,6]
[366464872,1750269041969,-3722.3,0.00022465,6]
[366464873,1750269041978,-460.0,0.00022465,6]
[366464874,1750269041988,-1717.18,0.00022465,6]
[366464875,1750269041997,-460.0,0.00022465,6]
[366464876,1750269042007,-1283.52,0.00022465,6]
[366464877,1750269042018,-460.0,0.00022465,2]
[366464878,1750269042029,-889.5,0.00022465,6]
[366464879,1750269042038,-460.0,0.00022465,6]
[366464880,1750269042048,-597.0,0.00022492,6]
[366464881,1750269042058,-597.0,0.0002252,6]
[366464882,1750269042068,-600.79020913,0.00022547,6]
[366464883,1750269042077,-895.02156935,0.0002259,7]
[366464884,1750269042086,-154.66272975,0.00022628,2]
[366464885,1750269042096,-1688.0,0.00022681,2]
[366464886,1750269042105,-500.0,0.00022681,2]
[366464887,1750269042115,-5000.0,0.00022681,2]
[366464888,1750269042125,-500.0,0.00022681,2]
[366464889,1750269042136,-500.0,0.00022681,2]
[366464890,1750269042153,-500.0,0.00022681,2]
[366464891,1750269042163,-500.0,0.00022681,2]
[366464892,1750269042175,-500.0,0.00022681,2]
[366464893,1750269042185,-500.0,0.00022681,2]
[366464894,1750269042195,-500.0,0.00022681,2]
[366464895,1750269042206,-500.0,0.00022681,2]
[366464896,1750269042221,-500.0,0.00022681,2]
[366464897,1750269042231,-500.0,0.00022681,2]
[366464898,1750269042241,-500.0,0.00022681,2]
[366464899,1750269042253,-207.4,0.00022681,2]
[366464900,1750269042263,-500.0,0.00022681,2]
[366464901,1750269042273,-500.0,0.00022681,2]
[366464902,1750269042282,-500.0,0.00022681,2]
[366464904,1750269042295,-500.0,0.00022681,2]
[366464905,1750269042308,-500.0,0.00022681,2]
[366464906,1750269042318,-500.0,0.00022681,2]
[366464907,1750269042328,-500.0,0.00022681,2]
[366464909,1750269042338,-533.47031743,0.00022681,2]
[366464911,1750269042348,-25000.0,0.00022681,2]
[366464912,1750269042358,-11495.05255543,0.000227,7]
[366464913,1750269042372,-21813.48015233,0.000227,7]
[366464914,1750269042387,-25629.32729224,0.000227,7]
[366464915,1750269042403,-383.4295021,0.00022728,7]
[366465009,1750269045815,-179.305669,0.00020712,6]
[366465010,1750269045825,-460.0,0.00021917,6]
[366465011,1750269045834,-196.35089324,0.00022191,6]
[366465012,1750269051033,234.805054,0.00013699,2]
[366465013,1750269090002,219.56,0.00018695,2]
[366465014,1750269173591,216.76,0.00018695,2]
[366465015,1750269255607,214.0,0.00018692,2]
[366465016,1750269342990,227.98,0.00018748,2]
[366465017,1750269422481,258.49,0.00018748,2]
[366465018,1750269503916,255.2,0.0001874,2]
[366465019,1750269584741,265.98,0.0001874,2]
[366465021,1750269664196,262.6,0.00018933,2]
[366465022,1750269697829,500.0,0.00025197,120]
[366465024,1750269728240,-584.77957175,0.00019241,2]
[366465025,1750269744414,266.7,0.00018736,2]
[366465027,1750269797952,93463.05,0.00019,3]
[366465028,1750269797989,66633.55092961,0.00019,3]
[366465030,1750269825553,263.3,0.00018674,2]
[366465032,1750269910007,259.95,0.00018675,2]
[366465033,1750269956098,-81.22042825,0.00019241,2]
[366465034,1750269956121,-519.9,0.00019564,2]
[366465035,1750269956143,-421.58463103,0.00020049,2]
[366465036,1750269956166,-234.805054,0.00020187,2]
[366465037,1750269956187,-202.942204,0.00020207,2]
[366465038,1750269956208,-421.58463103,0.0002044,2]
[366465039,1750269956231,-779.85,0.00020453,2]
[366465040,1750269956253,-949.65330128,0.000206,2]
[366465041,1750269956275,-300.0,0.00020648,2]
[366465042,1750269956297,-1200.0,0.00020648,2]
[366465043,1750269956318,-297.25161847,0.00020649,2]
[366465045,1750269988920,251.06,0.00018676,2]
[366465046,1750270030130,-502.11,0.00019566,2]
[366465047,1750270030154,-753.17,0.00020455,2]
[366465048,1750270030176,-364.29878372,0.00020561,2]
[366465049,1750270030198,-300.0,0.00020648,2]
[366465050,1750270030220,-300.0,0.00020648,2]
[366465051,1750270030241,-917.14868858,0.00020649,2]
[366465052,1750270030263,-500.0,0.00020649,2]
[366465053,1750270030286,-500.0,0.00020649,2]
[366465054,1750270030307,-500.0,0.00020649,2]
[366465055,1750270030336,-214.53694107,0.00020649,2]
[366465056,1750270030359,-500.0,0.00020649,2]
[366465057,1750270030384,-220.73450728,0.00020649,2]
[366465058,1750270030406,-500.0,0.00020649,2]
[366465059,1750270030428,-529.68522682,0.00020649,2]
[366465060,1750270030452,-37.77304947,0.00020649,2]
[366465062,1750270069913,231.89,0.00018678,2]
[366465066,1750270143750,721.47198082,0.000189,2]
[366465067,1750270146115,-242.1874,0.00019978,3]
[366465068,1750270149742,240.51,0.00018688,2]
[366465069,1750270153095,-459.92746841,0.00019578,2]
[366465070,1750270153128,-21.09253159,0.00019578,2]
[366465071,1750270153154,-98.8126,0.00019978,3]
[366465072,1750270153181,-330.89486841,0.00019978,3]
[366465073,1750270155099,-11.10513159,0.00019978,3]
[366465074,1750270155121,-424.170999,0.00020464,2]
[366465075,1750270155146,-721.53,0.00020468,2]
[366465076,1750270155168,-300.0,0.00020649,2]
[366465077,1750270155191,-6288.65389245,0.0002065,2]
[366465078,1750270195118,480.98132055,0.000189,2]
[366465079,1750270197991,235.952975,0.00013699,2]
[366465140,1750270231931,-222.14,0.0002011,2]
[366465142,1750270231941,-235.952975,0.00020187,2]
[366465144,1750270231951,-18209.15534027,0.0002065,2]
[366465161,1750270232144,-402.19076728,0.0002065,2]
[366465163,1750270232155,-177.428,0.00020661,2]
[366465165,1750270232165,-296.85133637,0.00020676,2]
[366465518,1750270237867,-4483.29136403,0.00020676,2]
[366465519,1750270237878,-444.29,0.00021067,2]
[366465520,1750270237888,-3144.16665317,0.00021346,2]
[366465521,1750270237899,-421.58463103,0.00021589,2]
[366465522,1750270237908,-318.76143579,0.00021816,2]
[366465523,1750270237918,-421.58463103,0.00021848,2]
[366465524,1750270237927,-624.38030273,0.00021899,2]
[366465525,1750270237938,-415.8341654,0.00021899,2]
[366465526,1750270237947,-793.49073546,0.000219,6]
[366465527,1750270237956,-299.44267522,0.00021916,2]
[366465528,1750270237967,-460.0,0.00021917,6]
[366465529,1750270237976,-460.0,0.00021917,6]
[366465530,1750270237986,-460.0,0.00021917,6]
[366465531,1750270237996,-460.0,0.00021917,6]
[366465532,1750270238005,-460.0,0.00021917,6]
[366465533,1750270238015,-460.0,0.00021917,6]
[366465534,1750270238024,-460.0,0.00021917,6]
[366465535,1750270238034,-230.0,0.00021917,6]
[366465536,1750270238044,-460.0,0.00021917,6]
[366465537,1750270238053,-460.0,0.00021917,6]
[366465538,1750270238064,-460.0,0.00021917,6]
[366465539,1750270238073,-605.26880892,0.00021917,6]
[366465540,1750270238082,-460.0,0.00021917,6]
[366465541,1750270238092,-460.0,0.00021917,6]
[366465542,1750270238101,-460.0,0.00021917,6]
[366465543,1750270238111,-460.0,0.00021917,6]
[366465544,1750270238120,-460.0,0.00021917,6]
[366465545,1750270238129,-605.40081918,0.00021917,6]
[366465546,1750270238140,-460.0,0.00021917,6]
[366465547,1750270238149,-460.0,0.00021917,6]
[366465548,1750270238159,-223.28085996,0.00021917,6]
[366465549,1750270238169,-460.0,0.00021917,6]
[366465550,1750270238178,-460.0,0.00021917,6]
[366465551,1750270238187,-460.0,0.00021917,6]
[366465552,1750270238197,-604.66,0.00021917,6]
[366465553,1750270238206,-242.35322493,0.00021917,6]
[366465554,1750270238215,-368.25155596,0.00021917,6]
[366465555,1750270238224,-460.0,0.00021917,6]
[366465556,1750270238233,-460.0,0.00021917,6]
[366465557,1750270238243,-512.41,0.00021917,6]
[366465558,1750270238252,-460.0,0.00021917,6]
[366465559,1750270238261,-2274.31,0.00021917,6]
[366465560,1750270238270,-460.0,0.00021917,6]
[366465561,1750270238420,-460.0,0.00021917,6]
[366465562,1750270238437,-460.0,0.00021917,6]
[366465563,1750270238446,-460.0,0.00021917,6]
[366465564,1750270238456,-1184.57,0.00021917,6]
[366465565,1750270238465,-611.66,0.00021917,6]
[366465566,1750270238474,-460.0,0.00021917,6]
[366465567,1750270238483,-460.0,0.00021917,6]
[366465568,1750270238493,-460.0,0.00021917,6]
[366465569,1750270238501,-460.7,0.00021917,6]
[366465570,1750270238510,-460.0,0.00021917,6]
[366465571,1750270238519,-460.0,0.00021917,6]
[366465572,1750270238529,-460.0,0.00021917,6]
[366465573,1750270238538,-1792.84,0.00021917,6]
[366465574,1750270238547,-460.0,0.00021917,6]
[366465575,1750270238558,-2050.35,0.00021917,6]
[366465576,1750270238571,-460.0,0.00021917,6]
[366465577,1750270238580,-1838.32,0.00021917,6]
[366465578,1750270238590,-460.0,0.00021917,6]
[366465579,1750270238599,-460.0,0.00021917,6]
[366465580,1750270238610,-460.0,0.00021917,6]
[366465581,1750270238619,-460.0,0.00021917,6]
[366465582,1750270238629,-795.5,0.00021917,6]
[366465583,1750270238640,-646.05,0.00021917,6]
[366465584,1750270238650,-460.0,0.00021917,6]
[366465585,1750270238659,-460.0,0.00021917,6]
[366465586,1750270238669,-460.0,0.00021917,6]
[366465587,1750270238678,-540.41,0.00021917,6]
[366465588,1750270238687,-460.0,0.00021917,6]
[366465589,1750270238696,-460.0,0.00021917,6]
[366465590,1750270238706,-769.89,0.00021917,6]
[366465591,1750270238715,-460.0,0.00021917,6]
[366465592,1750270238726,-460.0,0.00021917,6]
[366465593,1750270238736,-460.0,0.00021917,6]
[366465594,1750270238746,-460.0,0.00021917,6]
[366465595,1750270238755,-460.0,0.00021917,6]
[366465596,1750270238764,-460.0,0.00021917,6]
[366465597,1750270238774,-460.0,0.00021917,6]
[366465598,1750270238783,-1370.48,0.00021917,6]
[366465599,1750270238792,-531.3,0.00021917,6]
[366465600,1750270238801,-672.08,0.00021917,6]
[366465601,1750270238811,-460.0,0.00021917,6]
[366465602,1750270238820,-460.0,0.00021917,6]
[366465603,1750270238830,-460.0,0.00021917,6]
[366465604,1750270238840,-460.0,0.00021917,6]
[366465605,1750270238849,-460.0,0.00021917,6]
[366465606,1750270238859,-430.0,0.00021917,6]
[366465607,1750270238868,-460.0,0.00021917,6]
[366465608,1750270238877,-776.8,0.00021917,6]
[366465609,1750270238889,-430.0,0.00021917,6]
[366465610,1750270238899,-460.0,0.00021917,6]
[366465611,1750270238908,-460.0,0.00021917,6]
[366465612,1750270238918,-460.0,0.00021917,6]
[366465613,1750270238927,-460.0,0.00021917,6]
[366465614,1750270238937,-460.0,0.00021917,6]
[366465615,1750270238946,-460.0,0.00021917,6]
[366465616,1750270238955,-460.0,0.00021917,6]
[366465617,1750270238965,-460.0,0.00021917,6]
[366465618,1750270238974,-460.0,0.00021917,6]
[366465619,1750270238984,-460.0,0.00021917,6]
[366465620,1750270238993,-3729.53,0.00021917,6]
[366465621,1750270239002,-460.0,0.00021917,6]
[366465622,1750270239012,-524.17,0.00021917,6]
[366465623,1750270239021,-460.0,0.00021917,6]
[366465624,1750270239031,-931.05,0.00021917,6]
[366465625,1750270239040,-1418.76,0.00021917,6]
[366465626,1750270239049,-460.0,0.00021917,6]
[366465627,1750270239058,-2047.77,0.00021917,6]
[366465628,1750270239068,-460.0,0.00021917,6]
[366465629,1750270239077,-460.0,0.00021917,2]
[366465630,1750270239085,-420.61022631,0.00021917,6]
[366465631,1750270239094,-460.0,0.00021917,6]
[366465632,1750270239103,-460.0,0.00021917,6]
[366465633,1750270239112,-474.23,0.00021917,6]
[366465634,1750270239121,-460.0,0.00021917,6]
[366465635,1750270239132,-159.0,0.00022,2]
[366465636,1750270239142,-666.43,0.00022025,2]
[366465637,1750270239151,-793.49073526,0.00022038,6]
[366465638,1750270239161,-421.58463103,0.00022159,2]
[366465639,1750270239171,-793.49073526,0.00022176,6]
[366465640,1750270239180,-166.4591263,0.0002219,2]
[366465641,1750270239190,-160.0,0.0002219,2]
[366465642,1750270239200,-460.0,0.00022191,6]
[366465643,1750270239209,-460.0,0.00022191,6]
[366465644,1750270239218,-460.0,0.00022191,6]
[366465645,1750270239227,-460.0,0.00022191,6]
[366465646,1750270239237,-460.0,0.00022191,6]
[366465647,1750270239246,-460.0,0.00022191,6]
[366465648,1750270239255,-460.0,0.00022191,6]
[366465649,1750270239266,-460.0,0.00022191,6]
[366465650,1750270239276,-460.0,0.00022191,6]
[366465651,1750270239285,-460.0,0.00022191,6]
[366465652,1750270239295,-460.0,0.00022191,6]
[366465653,1750270239304,-460.0,0.00022191,6]
[366465655,1750270239314,-460.0,0.00022191,6]
[366465657,1750270239323,-460.0,0.00022191,6]
[366465659,1750270239333,-512.41,0.00022191,6]
[366465660,1750270239342,-460.0,0.00022191,6]
[366465662,1750270239352,-2274.31,0.00022191,6]
[366465664,1750270239361,-460.0,0.00022191,6]
[366465666,1750270239371,-460.0,0.00022191,6]
[366465667,1750270239380,-460.0,0.00022191,6]
[366465669,1750270239392,-1184.57,0.00022191,6]
[366465671,1750270239402,-611.66,0.00022191,6]
[366465673,1750270239412,-460.0,0.00022191,6]
[366465675,1750270239421,-460.0,0.00022191,6]
[366465677,1750270239430,-460.0,0.00022191,6]
[366465679,1750270239439,-460.7,0.00022191,6]
[366465680,1750270239449,-460.0,0.00022191,6]
[366465682,1750270239458,-460.0,0.00022191,6]
[366465684,1750270239468,-460.0,0.00022191,6]
[366465685,1750270239477,-1792.84,0.00022191,6]
[366465687,1750270239487,-2050.35,0.00022191,6]
[366465689,1750270239496,-1838.32,0.00022191,6]
[366465691,1750270239506,-795.5,0.00022191,6]
[366465693,1750270239515,-646.05,0.00022191,6]
[366465695,1750270239525,-460.0,0.00022191,6]
[366465697,1750270239534,-460.0,0.00022191,6]
[366465698,1750270239544,-491.06937682,0.00022191,6]
[366465700,1750270239554,-540.41,0.00022191,6]
[366465702,1750270239564,-460.0,0.00022191,6]
[366465704,1750270239577,-460.0,0.00022191,6]
[366465707,1750270239587,-769.89,0.00022191,6]
[366465709,1750270239596,-460.0,0.00022191,6]
[366465711,1750270239605,-460.0,0.00022191,6]
[366465712,1750270239615,-460.0,0.00022191,6]
[366465714,1750270239624,-460.0,0.00022191,6]
[366465716,1750270239635,-460.0,0.00022191,6]
[366465717,1750270239645,-460.0,0.00022191,6]
[366465719,1750270239654,-1370.48,0.00022191,6]
[366465721,1750270239664,-531.3,0.00022191,6]
[366465723,1750270239673,-672.08,0.00022191,6]
[366465725,1750270239684,-460.0,0.00022191,6]
[366465727,1750270239693,-460.0,0.00022191,6]
[366465729,1750270239702,-460.0,0.00022191,6]
[366465730,1750270239712,-776.8,0.00022191,6]
[366465732,1750270239722,-460.0,0.00022191,6]
[366465734,1750270239731,-460.0,0.00022191,6]
[366465736,1750270239741,-460.0,0.00022191,6]
[366465738,1750270239751,-460.0,0.00022191,6]
[366465740,1750270239760,-460.0,0.00022191,6]
[366465742,1750270239769,-460.0,0.00022191,6]
[366465743,1750270239779,-3729.53,0.00022191,6]
[366465745,1750270239789,-524.17,0.00022191,6]
[366465747,1750270239798,-931.05,0.00022191,6]
[366465748,1750270239808,-1418.76,0.00022191,6]
[366465749,1750270239817,-460.0,0.00022191,6]
[366465750,1750270239826,-2047.77,0.00022191,6]
[366465751,1750270239836,-460.0,0.00022191,6]
[366465752,1750270239846,-428.04696269,0.00022191,6]
[366465753,1750270239855,-460.0,0.00022191,2]
[366465754,1750270239864,-474.23,0.00022191,6]
[366465755,1750270239874,-460.0,0.00022191,6]
[366465756,1750270239884,-5000.0,0.00022207,2]
[366465757,1750270239894,-1688.0,0.00022207,2]
[366465758,1750270239903,-500.0,0.00022207,2]